fUST/lending_fUST_20240814
["ID","MTS","AMOUNT","RATE_DAILY","PERIOD"]
[334795663,1723577442953,-640.64,0.00013698,2]
[334795665,1723577442963,-500.0,0.00013698,2]
[334795667,1723577442978,-500.0,0.00013698,2]
[334795668,1723577442989,-500.0,0.00013698,2]
[334795672,1723577442999,-549.38,0.00013698,2]
[334795675,1723577443008,-716.99,0.00013698,2]
[334795678,1723577443018,-500.0,0.00013698,2]
[334795681,1723577443027,-184.189125,0.00013698,2]
[334795683,1723577443037,-987.79,0.00013698,2]
[334795685,1723577443047,-184.189125,0.00013698,2]
[334795688,1723577443057,-549.22,0.00013698,2]
[334795691,1723577443067,-1417.78,0.00013698,2]
[334795694,1723577443076,-500.0,0.00013698,2]
[334795697,1723577443086,-3540.56,0.00013698,2]
[334795700,1723577443096,-3525.13,0.00013698,2]
[334795703,1723577443105,-500.0,0.00013698,2]
[334795706,1723577443115,-500.0,0.00013698,2]
[334795709,1723577443125,-151.0,0.00013698,2]
[334795712,1723577443134,-1008.8,0.00013698,2]
[334795715,1723577443143,-500.0,0.00013698,2]
[334795717,1723577443153,-500.0,0.00013698,2]
[334795719,1723577443162,-933.56,0.00013698,2]
[334795720,1723577443171,-1052.8,0.00013698,2]
[334795723,1723577443180,-500.0,0.00013698,2]
[334795724,1723577443189,-501.35,0.00013698,2]
[334795726,1723577443198,-500.0,0.00013698,2]
[334795728,1723577443208,-500.0,0.00013698,2]
[334795730,1723577443221,-1409.220111,0.00013698,2]
[334795732,1723577443232,-621.49,0.00013698,2]
[334795734,1723577443242,-1409.220111,0.00013698,2]
[334795736,1723577443251,-516.265487,0.00013698,2]
[334795738,1723577443261,-500.0,0.00013698,2]
[334795739,1723577443270,-536.49,0.00013698,2]
[334795740,1723577443281,-516.265487,0.00013698,2]
[334795741,1723577443290,-500.0,0.00013698,2]
[334795742,1723577443299,-500.0,0.00013698,2]
[334795743,1723577443309,-587.28,0.00013698,2]
[334795744,1723577443319,-500.0,0.00013698,2]
[334795745,1723577443329,-1868.163089,0.00013698,2]
[334795746,1723577443338,-3000.0,0.00013699,2]
[334795747,1723577443349,-675.778675,0.00013699,2]
[334795748,1723577443358,-500.0,0.00013699,2]
[334795749,1723577443368,-372.11934053,0.00013699,2]
[334795750,1723577443377,-500.0,0.00013699,2]
[334795751,1723577443387,-500.0,0.00013699,2]
[334795752,1723577443396,-292.42627683,0.00013699,2]
[334795753,1723577443406,-500.0,0.00013699,2]
[334795754,1723577443417,-500.0,0.00013699,2]
[334795755,1723577443427,-500.0,0.00013699,2]
[334795756,1723577443436,-500.0,0.00013699,2]
[334795758,1723577443447,-500.0,0.00013699,2]
[334795759,1723577443457,-188.34908866,0.00013699,2]
[334795761,1723577443484,-250.45381497,0.00013699,2]
[334795763,1723577443497,-61.19709637,0.00013699,2]
[334795764,1723577443508,-500.0,0.00013699,2]
[334795765,1723577443519,-500.0,0.00013699,2]
[334795766,1723577443531,-500.0,0.00013699,2]
[334795767,1723577443544,-500.0,0.00013699,2]
[334795769,1723577443553,-500.0,0.00013699,2]
[334795771,1723577443562,-500.0,0.00013699,2]
[334795772,1723577443572,-500.0,0.00013699,2]
[334795773,1723577443582,-500.0,0.00013699,2]
[334795774,1723577443592,-150.112233,0.000137,2]
[334795775,1723577443601,-150.112233,0.000137,2]
[334795776,1723577443611,-150.112233,0.000137,2]
[334795777,1723577443621,-150.112233,0.000137,2]
[334795778,1723577443630,-150.112233,0.000137,2]
[334795779,1723577443640,-1673.03148136,0.0001373,2]
[334795780,1723577443650,-150.112233,0.000138,2]
[334795781,1723577443660,-150.112233,0.000138,2]
[334795782,1723577443670,-150.112233,0.000138,2]
[334795783,1723577443680,-150.112233,0.000138,2]
[334795784,1723577443690,-150.112233,0.000138,2]
[334795785,1723577443700,-150.112233,0.000138,2]
[334795786,1723577443709,-1673.03148136,0.000138,2]
[334795787,1723577443725,-3045.8453779,0.00013861,2]
[334795788,1723577443740,-6914.62944673,0.00013861,2]
[334795789,1723577443750,-1516.39050981,0.00013871,2]
[334795790,1723577443827,-156.64097155,0.00013871,2]
[334795791,1723577443837,-150.112233,0.000139,2]
[334795792,1723577443848,-150.112233,0.000139,2]
[334795793,1723577443858,-150.112233,0.000139,2]
[334795794,1723577443868,-150.112233,0.000139,2]
[334795795,1723577443878,-878.91,0.0001395,2]
[334795796,1723577443887,-878.91,0.0001395,2]
[334795797,1723577443897,-878.91,0.0001395,2]
[334795798,1723577443908,-151.0,0.00013951,2]
[334795799,1723577443917,-151.0,0.00013951,2]
[334795800,1723577443928,-151.0,0.00013951,2]
[334795801,1723577443937,-151.0,0.00013951,2]
[334795802,1723577443947,-1185.18009645,0.00013951,2]
[334795803,1723577443959,-117.67875255,0.00013951,2]
[334795804,1723577443973,-1302.858849,0.00013951,2]
[334795805,1723577443982,-213.97388,0.00013951,2]
[334795806,1723577443991,-209.687962,0.00013951,2]
[334795807,1723577444000,-209.687962,0.00013951,2]
[334795808,1723577444009,-285.036668,0.00013951,2]
[334795809,1723577444019,-285.036668,0.00013951,2]
[334795810,1723577444028,-188.75,0.00013951,2]
[334795811,1723577444038,-188.75,0.00013951,2]
[334795812,1723577444048,-151.0,0.00013951,2]
[334795813,1723577444058,-1263.0429,0.00013951,2]
[334795814,1723577444069,-169.134639,0.00013951,2]
[334795815,1723577444080,-1263.0429,0.00013951,2]
[334795816,1723577444090,-151.0,0.00013951,2]
[334795817,1723577444101,-190.674519,0.00013951,2]
[334795818,1723577444111,-190.674519,0.00013951,2]
[334795819,1723577444123,-151.0,0.00013961,2]
[334795820,1723577444134,-151.0,0.00013961,2]
[334795821,1723577444143,-151.0,0.00013961,2]
[334795822,1723577444153,-151.0,0.00013961,2]
[334795823,1723577444163,-151.0,0.00013961,2]
[334795824,1723577444172,-151.0,0.00013961,2]
[334795825,1723577444182,-151.0,0.00013961,2]
[334795826,1723577444191,-219.330064,0.00013961,2]
[334795827,1723577444201,-219.330064,0.00013961,2]
[334795828,1723577444211,-878.91,0.00013961,2]
[334795829,1723577444222,-151.0,0.00013962,2]
[334795830,1723577444232,-151.0,0.00013962,2]
[334795831,1723577444241,-219.330064,0.00013962,2]
[334795832,1723577444251,-219.330064,0.00013962,2]
[334795833,1723577444263,-151.0,0.00013962,2]
[334795834,1723577444272,-3202.159639,0.00013962,2]
[334795835,1723577444282,-937.448498,0.00013962,2]
[334795836,1723577444294,-937.448498,0.00013962,2]
[334795837,1723577444304,-2987.12433,0.00013962,2]
[334795838,1723577444314,-151.0,0.00013962,2]
[334795839,1723577444324,-2987.12433,0.00013962,2]
[334795840,1723577444334,-386.355486,0.00013962,2]
[334795841,1723577444344,-151.0,0.00013962,2]
[334795842,1723577444354,-386.355486,0.00013962,2]
[334795843,1723577444364,-528.759088,0.00013962,2]
[334795844,1723577444375,-528.759088,0.00013962,2]
[334795845,1723577444385,-316.022014,0.00013962,2]
[334795846,1723577444395,-316.022014,0.00013962,2]
[334795847,1723577444404,-906.819033,0.00013962,2]
[334795848,1723577444414,-906.819033,0.00013962,2]
[334795849,1723577444424,-1122.32822,0.00013962,2]
[334795851,1723577444433,-165.296242,0.00013962,2]
[334795852,1723577444442,-1122.32822,0.00013962,2]
[334795854,1723577444452,-165.296242,0.00013962,2]
[334795856,1723577444465,-151.0,0.00013962,2]
[334795857,1723577444476,-151.0,0.00013962,2]
[334795858,1723577444489,-1987.183009,0.00013962,2]
[334795859,1723577444500,-1987.183009,0.00013962,2]
[334795861,1723577444511,-878.91,0.0001397,2]
[334795863,1723577444522,-179.592929,0.0001397,2]
[334795865,1723577444533,-203.50934828,0.00013971,2]
[334795866,1723577444543,-5988.76086081,0.00013971,2]
[334795867,1723577444557,-151.0,0.00013971,2]
[334795869,1723577444567,-151.0,0.00013971,2]
[334795870,1723577444576,-159.795908,0.00013971,2]
[334795871,1723577444586,-151.0,0.00013971,2]
[334795872,1723577444596,-151.0,0.00013971,2]
[334795873,1723577444606,-2266.847642,0.00013971,2]
[334795874,1723577444615,-2266.847642,0.00013971,2]
[334795875,1723577444625,-1770.58962,0.00013971,2]
[334795876,1723577444635,-151.0,0.00013971,2]
[334795877,1723577444645,-1770.58962,0.00013971,2]
[334795878,1723577444655,-161.747904,0.00013971,2]
[334795879,1723577444666,-151.0,0.00013971,2]
[334795880,1723577444676,-151.0,0.00013971,2]
[334795881,1723577444686,-878.91,0.00013971,2]
[334795882,1723577444696,-878.91,0.00013971,2]
[334795883,1723577444706,-878.91,0.00013971,2]
[334795884,1723577444716,-878.91,0.00013971,2]
[334795885,1723577444726,-879.12279186,0.00013971,2]
[334795886,1723577444735,-184.189125,0.00013971,2]
[334795887,1723577444744,-184.189125,0.00013971,2]
[334795888,1723577444754,-322.749547,0.00013971,2]
[334795889,1723577444763,-322.749547,0.00013971,2]
[334795890,1723577444772,-1873.781634,0.00013971,2]
[334795891,1723577444781,-1873.781634,0.00013971,2]
[334795892,1723577444791,-1409.220111,0.00013971,2]
[334795893,1723577444800,-1409.220111,0.00013971,2]
[334795894,1723577444809,-516.265487,0.00013971,2]
[334795895,1723577444819,-516.265487,0.00013971,2]
[334795896,1723577444829,-1868.163089,0.00013971,2]
[334795897,1723577444839,-151.0,0.00013972,2]
[334795898,1723577444848,-151.0,0.00013972,2]
[334795899,1723577444858,-219.277938,0.00013972,2]
[334795900,1723577444868,-219.277938,0.00013972,2]
[334795901,1723577444879,-151.0,0.00013972,2]
[334795902,1723577444888,-500.0,0.00013972,2]
[334795903,1723577444898,-151.0,0.00013972,2]
[334795904,1723577444909,-151.0,0.00013972,2]
[334795905,1723577444919,-168.247562,0.00013972,2]
[334795906,1723577444929,-528.33163512,0.00013972,2]
[334795907,1723577444940,-901.53,0.00013972,2]
[334795908,1723577444950,-500.0,0.00013972,2]
[334795909,1723577444961,-500.0,0.00013972,2]
[334795910,1723577444974,-500.0,0.00013972,2]
[334795911,1723577444984,-500.0,0.00013972,2]
[334795912,1723577444994,-500.0,0.00013972,2]
[334795913,1723577445004,-500.0,0.00013972,2]
[334795914,1723577445014,-500.0,0.00013972,2]
[334795915,1723577445024,-151.0,0.00013972,2]
[334795916,1723577445034,-151.0,0.00013972,2]
[334795917,1723577445045,-626.75,0.00013972,2]
[334795918,1723577445056,-500.0,0.00013972,2]
[334795919,1723577445066,-219.330064,0.00013972,2]
[334795920,1723577445076,-219.330064,0.00013972,2]
[334795921,1723577445087,-500.0,0.00013972,2]
[334795922,1723577445098,-151.0,0.00013972,2]
[334795923,1723577445109,-617.21,0.00013972,2]
[334795924,1723577445120,-151.0,0.00013972,2]
[334795925,1723577445130,-151.0,0.00013972,2]
[334795926,1723577445140,-151.0,0.00013972,2]
[334795927,1723577445151,-500.0,0.00013972,2]
[334795928,1723577445161,-500.0,0.00013972,2]
[334795929,1723577445170,-500.0,0.00013972,2]
[334795930,1723577445180,-500.0,0.00013972,2]
[334795931,1723577445190,-156.45,0.00013972,2]
[334795932,1723577445199,-500.0,0.00013972,2]
[334795933,1723577445209,-151.0,0.00013972,2]
[334795934,1723577445221,-151.0,0.00013972,2]
[334795935,1723577445231,-500.0,0.00013972,2]
[334795936,1723577445241,-500.0,0.00013972,2]
[334795937,1723577445250,-151.0,0.00013972,2]
[334795938,1723577445260,-151.0,0.00013972,2]
[334795939,1723577445270,-500.0,0.00013972,2]
[334795940,1723577445280,-500.0,0.00013972,2]
[334795941,1723577445289,-250.34358349,0.00013972,2]
[334795942,1723577445299,-500.0,0.00013972,2]
[334795943,1723577445309,-500.0,0.00013972,2]
[334795944,1723577445319,-1302.858849,0.00013972,2]
[334795945,1723577445328,-1302.858849,0.00013972,2]
[334795946,1723577445337,-500.0,0.00013972,2]
[334795947,1723577445347,-1302.858849,0.00013972,2]
[334795948,1723577445357,-1302.858849,0.00013972,2]
[334795949,1723577445367,-500.0,0.00013972,2]
[334795950,1723577445378,-507.38404864,0.00013972,2]
[334795951,1723577445388,-500.0,0.00013972,2]
[334795952,1723577445398,-500.0,0.00013972,2]
[334795953,1723577445408,-500.0,0.00013972,2]
[334795954,1723577445418,-500.0,0.00013972,2]
[334795955,1723577445427,-500.0,0.00013972,2]
[334795956,1723577445437,-209.687962,0.00013972,2]
[334795957,1723577445448,-209.687962,0.00013972,2]
[334795958,1723577445459,-209.687962,0.00013972,2]
[334795959,1723577445475,-209.687962,0.00013972,2]
[334795960,1723577445485,-500.0,0.00013972,2]
[334795961,1723577445495,-500.0,0.00013972,2]
[334795962,1723577445505,-500.0,0.00013972,2]
[334795963,1723577445516,-500.0,0.00013972,2]
[334795964,1723577445527,-500.0,0.00013972,2]
[334795965,1723577445537,-285.036668,0.00013972,2]
[334795966,1723577445547,-285.036668,0.00013972,2]
[334795967,1723577445557,-500.0,0.00013972,2]
[334795968,1723577445568,-285.036668,0.00013972,2]
[334795969,1723577445578,-285.036668,0.00013972,2]
[334795970,1723577445588,-500.0,0.00013972,2]
[334795971,1723577445597,-188.75,0.00013972,2]
[334795972,1723577445607,-188.75,0.00013972,2]
[334795973,1723577445617,-347.8709503,0.00013972,2]
[334795974,1723577445627,-500.0,0.00013972,2]
[334795975,1723577445639,-188.75,0.00013972,2]
[334795976,1723577445648,-188.75,0.00013972,2]
[334795977,1723577445658,-500.0,0.00013972,2]
[334795978,1723577445668,-151.0,0.00013972,2]
[334795979,1723577445677,-2266.847642,0.00013972,2]
[334795980,1723577445687,-151.0,0.00013972,2]
[334795981,1723577445697,-1263.0429,0.00013972,2]
[334795982,1723577445707,-1263.0429,0.00013972,2]
[334795983,1723577445718,-2266.847642,0.00013972,2]
[334795984,1723577445728,-1263.0429,0.00013972,2]
[334795985,1723577445738,-1263.0429,0.00013972,2]
[334795986,1723577445748,-500.0,0.00013972,2]
[334795987,1723577445757,-1770.58962,0.00013972,2]
[334795988,1723577445767,-151.0,0.00013972,2]
[334795989,1723577445776,-151.0,0.00013972,2]
[334795990,1723577445786,-151.0,0.00013972,2]
[334795991,1723577445796,-1770.58962,0.00013972,2]
[334795992,1723577445806,-151.0,0.00013972,2]
[334795993,1723577445816,-3202.159639,0.00013972,2]
[334795994,1723577445825,-500.0,0.00013972,2]
[334795995,1723577445836,-500.0,0.00013972,2]
[334795996,1723577445845,-500.0,0.00013972,2]
[334795997,1723577445855,-3202.159639,0.00013972,2]
[334795998,1723577445865,-500.0,0.00013972,2]
[334795999,1723577445874,-500.0,0.00013972,2]
[334796000,1723577445884,-500.0,0.00013972,2]
[334796001,1723577445894,-190.674519,0.00013972,2]
[334796002,1723577445903,-190.674519,0.00013972,2]
[334796003,1723577445915,-500.0,0.00013972,2]
[334796004,1723577445928,-190.674519,0.00013972,2]
[334796005,1723577445939,-190.674519,0.00013972,2]
[334796006,1723577445950,-937.448498,0.00013972,2]
[334796007,1723577445960,-937.448498,0.00013972,2]
[334796008,1723577445971,-500.0,0.00013972,2]
[334796009,1723577445981,-2987.12433,0.00013972,2]
[334796010,1723577445991,-500.0,0.00013972,2]
[334796011,1723577446000,-151.0,0.00013972,2]
[334796012,1723577446010,-2987.12433,0.00013972,2]
[334796013,1723577446019,-500.0,0.00013972,2]
[334796014,1723577446029,-500.0,0.00013972,2]
[334796015,1723577446039,-500.0,0.00013972,2]
[334796016,1723577446052,-386.355486,0.00013972,2]
[334796017,1723577446064,-151.0,0.00013972,2]
[334796018,1723577446075,-386.355486,0.00013972,2]
[334796019,1723577446084,-528.759088,0.00013972,2]
[334796020,1723577446094,-500.0,0.00013972,2]
[334796021,1723577446106,-528.759088,0.00013972,2]
[334796022,1723577446117,-1283.89,0.00013972,2]
[334796023,1723577446251,-500.0,0.00013972,2]
[334796024,1723577446262,-500.0,0.00013972,2]
[334796025,1723577446273,-316.022014,0.00013972,2]
[334796026,1723577446283,-500.0,0.00013972,2]
[334796027,1723577446294,-500.0,0.00013972,2]
[334796028,1723577446305,-500.0,0.00013972,2]
[334796029,1723577446316,-316.022014,0.00013972,2]
[334796030,1723577446325,-500.0,0.00013972,2]
[334796031,1723577446335,-1821.11,0.00013972,2]
[334796032,1723577446346,-500.0,0.00013972,2]
[334796033,1723577446356,-500.0,0.00013972,2]
[334796034,1723577446367,-906.819033,0.00013972,2]
[334796035,1723577446378,-500.0,0.00013972,2]
[334796036,1723577446389,-584.55,0.00013972,2]
[334796037,1723577446399,-1969.83,0.00013972,2]
[334796038,1723577446408,-500.0,0.00013972,2]
[334796039,1723577446418,-906.819033,0.00013972,2]
[334796040,1723577446427,-801.4,0.00013972,2]
[334796041,1723577446436,-500.0,0.00013972,2]
[334796042,1723577446446,-844.21,0.00013972,2]
[334796043,1723577446457,-1122.32822,0.00013972,2]
[334796044,1723577446469,-500.0,0.00013972,2]
[334796045,1723577446487,-165.296242,0.00013972,2]
[334796046,1723577446496,-1122.32822,0.00013972,2]
[334796047,1723577446505,-151.0,0.00013972,2]
[334796048,1723577446514,-165.296242,0.00013972,2]
[334796049,1723577446523,-151.0,0.00013972,2]
[334796050,1723577446532,-697.48,0.00013972,2]
[334796051,1723577446542,-164.419166,0.00013972,2]
[334796052,1723577446552,-500.0,0.00013972,2]
[334796053,1723577446562,-500.0,0.00013972,2]
[334796054,1723577446572,-500.0,0.00013972,2]
[334796055,1723577446581,-500.0,0.00013972,2]
[334796056,1723577446590,-500.0,0.00013972,2]
[334796057,1723577446601,-500.0,0.00013972,2]
[334796058,1723577446610,-500.0,0.00013972,2]
[334796059,1723577446621,-500.0,0.00013972,2]
[334796060,1723577446632,-1970.65,0.00013972,2]
[334796061,1723577446643,-500.0,0.00013972,2]
[334796062,1723577446654,-500.0,0.00013972,2]
[334796063,1723577446664,-739.71,0.00013972,2]
[334796064,1723577446674,-500.0,0.00013972,2]
[334796065,1723577446685,-151.0,0.00013972,2]
[334796066,1723577446696,-735.6,0.00013972,2]
[334796067,1723577446707,-197.73020184,0.00013972,2]
[334796068,1723577446716,-500.0,0.00013972,2]
[334796069,1723577446728,-500.0,0.00013972,2]
[334796070,1723577446741,-500.0,0.00013972,2]
[334796071,1723577446751,-500.0,0.00013972,2]
[334796072,1723577446761,-658.04,0.00013972,2]
[334796073,1723577446771,-500.0,0.00013972,2]
[334796074,1723577446781,-513.8,0.00013972,2]
[334796075,1723577446790,-500.0,0.00013972,2]
[334796076,1723577446799,-500.0,0.00013972,2]
[334796077,1723577446809,-1987.183009,0.00013972,2]
[334796078,1723577446818,-500.0,0.00013972,2]
[334796079,1723577446828,-500.0,0.00013972,2]
[334796080,1723577446838,-1987.183009,0.00013972,2]
[334796081,1723577446848,-500.0,0.00013972,2]
[334796082,1723577446858,-723.97,0.00013972,2]
[334796083,1723577446869,-500.0,0.00013972,2]
[334796084,1723577446880,-500.0,0.00013972,2]
[334796085,1723577446889,-500.0,0.00013972,2]
[334796086,1723577446900,-500.0,0.00013972,2]
[334796087,1723577446910,-2342.87,0.00013972,2]
[334796088,1723577446919,-640.64,0.00013972,2]
[334796089,1723577446929,-500.0,0.00013972,2]
[334796090,1723577446939,-500.0,0.00013972,2]
[334796091,1723577446951,-500.0,0.00013972,2]
[334796092,1723577446960,-549.38,0.00013972,2]
[334796093,1723577446974,-716.99,0.00013972,2]
[334796094,1723577446985,-500.0,0.00013972,2]
[334796095,1723577446996,-184.189125,0.00013972,2]
[334796096,1723577447006,-987.79,0.00013972,2]
[334796097,1723577447018,-184.189125,0.00013972,2]
[334796098,1723577447029,-549.22,0.00013972,2]
[334796099,1723577447038,-1417.78,0.00013972,2]
[334796100,1723577447048,-500.0,0.00013972,2]
[334796101,1723577447057,-322.749547,0.00013972,2]
[334796102,1723577447066,-3180.44959106,0.00013972,2]
[334796103,1723577447301,-1674.6683634,0.00013688,2]
[334796104,1723577447313,-193.4947256,0.00013688,2]
[334796105,1723577447322,-959.4239925,0.00013698,2]
[334796106,1723577447333,-378.97818432,0.00013698,2]
[334796139,1723577448240,-200.0,0.00013673,2]
[334796140,1723577448250,-529.76091218,0.00013698,2]
[334796142,1723577448259,-544.7,0.00013698,2]
[334796144,1723577448268,-3000.0,0.00013699,2]
[334796145,1723577448278,-1868.163089,0.00013971,2]
[334796146,1723577448289,-360.11040894,0.00013972,2]
[334796147,1723577448298,-322.749547,0.00013972,2]
[334796149,1723577448307,-3525.13,0.00013972,2]
[334796151,1723577448318,-500.0,0.00013972,2]
[334796153,1723577448327,-500.0,0.00013972,2]
[334796154,1723577448336,-1008.8,0.00013972,2]
[334796155,1723577448346,-500.0,0.00013972,2]
[334796156,1723577448356,-500.0,0.00013972,2]
[334796157,1723577448365,-933.56,0.00013972,2]
[334796158,1723577448374,-1052.8,0.00013972,2]
[334796159,1723577448383,-500.0,0.00013972,2]
[334796160,1723577448393,-1873.781634,0.00013972,2]
[334796161,1723577448402,-501.35,0.00013972,2]
[334796162,1723577448412,-500.0,0.00013972,2]
[334796163,1723577448421,-500.0,0.00013972,2]
[334796164,1723577448430,-1873.781634,0.00013972,2]
[334796165,1723577448439,-1409.220111,0.00013972,2]
[334796166,1723577448449,-621.49,0.00013972,2]
[334796167,1723577448459,-1409.220111,0.00013972,2]
[334796168,1723577448471,-516.265487,0.00013972,2]
[334796169,1723577448483,-500.0,0.00013972,2]
[334796170,1723577448493,-536.49,0.00013972,2]
[334796171,1723577448502,-500.0,0.00013972,2]
[334796172,1723577448512,-516.265487,0.00013972,2]
[334796173,1723577448522,-500.0,0.00013972,2]
[334796174,1723577448531,-587.28,0.00013972,2]
[334796175,1723577448540,-500.0,0.00013972,2]
[334796176,1723577448550,-1868.163089,0.00013972,2]
[334796177,1723577448559,-1868.163089,0.00013972,2]
[334796178,1723577448568,-200.0,0.00013973,2]
[334796179,1723577448577,-150.112233,0.00014,2]
[334796180,1723577448587,-150.112233,0.00014,2]
[334796181,1723577448596,-150.112233,0.00014,2]
[334796182,1723577448606,-150.112233,0.000141,2]
[334796183,1723577448615,-150.112233,0.000142,2]
[334796184,1723577448624,-150.112233,0.000142,2]
[334796185,1723577448633,-1413.0,0.0001424,2]
[334796186,1723577448644,-150.0,0.0001424,2]
[334796187,1723577448653,-520.0,0.0001424,2]
[334796188,1723577448663,-151.0,0.00014246,2]
[334796189,1723577448672,-151.0,0.00014246,2]
[334796190,1723577448682,-560.76662354,0.00014246,2]
[334796191,1723577448691,-151.0,0.00014246,2]
[334796192,1723577448701,-151.0,0.00014246,2]
[334796193,1723577448710,-901.53,0.00014246,2]
[334796194,1723577448720,-500.0,0.00014246,2]
[334796195,1723577448729,-500.0,0.00014246,2]
[334796196,1723577448740,-550.69959831,0.00014246,2]
[334796197,1723577448751,-500.0,0.00014246,2]
[334796198,1723577448761,-500.0,0.00014246,2]
[334796199,1723577448771,-151.0,0.00014246,2]
[334796200,1723577448780,-151.0,0.00014246,2]
[334796201,1723577448789,-626.75,0.00014246,2]
[334796202,1723577448800,-219.330064,0.00014246,2]
[334796203,1723577448809,-219.330064,0.00014246,2]
[334796204,1723577448819,-617.21,0.00014246,2]
[334796205,1723577448828,-151.0,0.00014246,2]
[334796206,1723577448837,-160.263333,0.00014246,2]
[334796207,1723577448846,-500.0,0.00014246,2]
[334796208,1723577448857,-500.0,0.00014246,2]
[334796209,1723577448866,-500.0,0.00014246,2]
[334796210,1723577448875,-500.0,0.00014246,2]
[334796211,1723577448885,-500.0,0.00014246,2]
[334796212,1723577448895,-151.0,0.00014246,2]
[334796213,1723577448904,-567.79668655,0.00014246,2]
[334796214,1723577448913,-500.0,0.00014246,2]
[334796215,1723577448923,-151.0,0.00014246,2]
[334796216,1723577448933,-500.0,0.00014246,2]
[334796217,1723577448943,-500.0,0.00014246,2]
[334796218,1723577448953,-500.0,0.00014246,2]
[334796219,1723577448962,-1302.858849,0.00014246,2]
[334796220,1723577448973,-500.0,0.00014246,2]
[334796221,1723577448983,-1302.858849,0.00014246,2]
[334796222,1723577448992,-500.0,0.00014246,2]
[334796223,1723577449002,-500.0,0.00014246,2]
[334796224,1723577449011,-500.0,0.00014246,2]
[334796225,1723577449020,-500.0,0.00014246,2]
[334796226,1723577449029,-500.0,0.00014246,2]
[334796227,1723577449039,-500.0,0.00014246,2]
[334796228,1723577449048,-209.687962,0.00014246,2]
[334796229,1723577449057,-209.687962,0.00014246,2]
[334796230,1723577449066,-500.0,0.00014246,2]
[334796231,1723577449076,-500.0,0.00014246,2]
[334796232,1723577449085,-500.0,0.00014246,2]
[334796233,1723577449096,-500.0,0.00014246,2]
[334796234,1723577449105,-500.0,0.00014246,2]
[334796235,1723577449115,-285.036668,0.00014246,2]
[334796236,1723577449124,-500.0,0.00014246,2]
[334796237,1723577449133,-285.036668,0.00014246,2]
[334796238,1723577449142,-500.0,0.00014246,2]
[334796239,1723577449152,-188.75,0.00014246,2]
[334796240,1723577449161,-406.39971067,0.00014246,2]
[334796241,1723577449170,-188.75,0.00014246,2]
[334796242,1723577449179,-2266.847642,0.00014246,2]
[334796243,1723577449189,-151.0,0.00014246,2]
[334796244,1723577449200,-2266.847642,0.00014246,2]
[334796245,1723577449209,-1263.0429,0.00014246,2]
[334796246,1723577449218,-2266.847642,0.00014246,2]
[334796247,1723577449229,-2266.847642,0.00014246,2]
[334796248,1723577449239,-1263.0429,0.00014246,2]
[334796249,1723577449250,-500.0,0.00014246,2]
[334796250,1723577449261,-1770.58962,0.00014246,2]
[334796251,1723577449270,-1770.58962,0.00014246,2]
[334796252,1723577449281,-151.0,0.00014246,2]
[334796253,1723577449290,-151.0,0.00014246,2]
[334796254,1723577449300,-151.0,0.00014246,2]
[334796255,1723577449311,-1770.58962,0.00014246,2]